bitfinex/quotes_ETHUSD_20250123
["timestamp","ask_amount","ask_price","bid_price","bid_amount"]
[1737647908391,3.06991,3257.5,3256.7,3.07051]
[1737647908614,3.06994,3257.4,3256.7,3.07051]
[1737647909832,3.06991,3257.5,3256.5,3.91307]
[1737647909975,3.07024,3257.1,3256.5,3.91307]
[1737647910174,3.70490934,3257.8,3256.5,0.8423]
[1737647910414,3.70490934,3257.8,3255.9,35.0]
[1737647910415,3.07063,3256.7,3256.0,3.87107]
[1737647910616,3.07063,3256.7,3256.1,1.83960746]
[1737647910842,3.07063,3256.7,3256.1,4.91075746]
[1737647911021,3.0705,3256.8,3256.2,3.07105]
[1737647911799,0.2249,3257.4,3256.2,3.07105]
[1737647911800,3.07018,3257.2,3256.5,3.07076]
[1737647911996,3.07002,3257.3,3256.5,3.07076]
[1737647912199,3.07021,3257.1,3256.3,3.86285]
[1737647912453,3.07051,3256.8,3256.3,0.7919]
[1737647912602,3.07066,3256.7,3256.3,0.7919]
[1737647912802,3.07051,3256.8,3256.3,0.7919]
[1737647913204,3.07068,3256.7,3256.3,0.7919]
[1737647913406,3.07051,3256.8,3256.3,0.7919]
[1737647913939,3.07031,3257.0,3256.3,0.7919]
[1737647914144,3.0704,3256.9,3256.3,3.86283]
[1737647914519,3.07012,3257.3,3256.6,3.07063]
[1737647914715,3.07001,3257.4,3256.8,3.07046]
[1737647915625,3.06986,3257.5,3256.9,3.07037]
[1737647915931,3.06986,3257.5,3256.9,38.07037]
[1737647916347,3.0697,3257.7,3257.0,3.07028]
[1737647916655,3.0692,3258.2,3257.2,3.07012]
[1737647916947,3.06899,3258.4,3257.7,0.8295]
[1737647917131,3.06913,3258.3,3257.7,0.8295]
[1737647917340,3.06899,3258.4,3256.3,3.07088]
[1737647917341,3.07038,3257.0,3256.3,3.07088]
[1737647917510,3.07048,3256.9,3256.3,0.8268]
[1737647917851,3.07066,3256.7,3256.3,0.8268]
[1737647918005,3.07066,3256.7,3256.3,1.216595]
[1737647918654,3.07048,3256.9,3256.3,1.216595]
[1737647918856,3.07041,3256.9,3256.3,1.216595]
[1737647919413,3.07053,3256.8,3256.3,1.216595]
[1737647919642,3.0706,3256.7,3256.3,0.8268]
[1737647919845,3.07041,3256.9,3256.3,3.89775]
[1737647920043,3.07041,3256.9,3256.4,35.0]
[1737647920315,3.07052,3256.8,3256.4,35.0]
[1737647920524,3.07041,3256.9,3256.4,35.0]
[1737647921417,3.07008,3257.3,3256.6,3.07067]
[1737647921613,3.07006,3257.3,3256.6,0.8221]
[1737647921813,6.13977,3257.5,3256.7,6.14104]
[1737647922069,3.06996,3257.4,3256.8,35.0]
[1737647922232,3.06996,3257.4,3256.8,38.07048]
[1737647922563,3.07005,3257.3,3256.8,41.17250562]
[1737647923867,3.06985,3257.5,3256.9,3.07037]
[1737647924157,3.06985,3257.5,3257.0,0.843]
[1737647924372,3.06987,3257.5,3257.0,0.843]
[1737647924592,0.2249,3257.4,3256.2,8.87]
[1737647924875,0.2249,3257.4,3255.4,3.91475]
[1737647924876,3.07069,3256.6,3256.1,3.07114]
[1737647925166,0.2249,3256.7,3256.1,3.378254]
[1737647925324,3.07074,3256.6,3256.1,0.307114]
[1737647926362,3.07074,3256.6,3256.1,3.378244]
[1737647926523,0.2249,3256.7,3255.6,0.61124484]
[1737647926718,3.07126,3256.0,3255.6,0.61124484]
[1737647926940,3.07126,3256.0,3255.5,38.07166]
[1737647927275,3.07126,3256.0,3255.5,35.0]
[1737647927563,0.2148,3256.0,3255.3,3.07188]
[1737647927761,3.28606,3256.0,3255.4,3.378938]
[1737647928167,3.07135,3255.9,3255.4,0.307188]
[1737647928366,3.28606,3256.0,3255.4,3.378988]
[1737647929708,3.07174,3255.5,3254.9,3.69585904]
[1737647929994,3.2861,3256.0,3255.3,3.07182]
[1737647930203,3.07141,3255.9,3255.2,3.07195]
[1737647930499,3.07144,3255.8,3255.2,3.07195]
[1737647930994,3.07144,3255.8,3255.2,6.1439]
[1737647931198,3.07142,3255.9,3255.2,3.68634]
[1737647931372,3.07146,3255.8,3255.2,3.68634]
[1737647932203,3.2861,3256.0,3255.3,3.0719]
[1737647932398,3.2861,3256.0,3255.0,3.07216]
[1737647932399,3.07162,3255.7,3255.0,3.07216]
[1737647932702,0.2148,3256.0,3255.4,3.07174]
[1737647933021,3.48000934,3257.1,3255.4,3.07174]
[1737647933022,3.28579,3256.3,3255.7,3.07145]
[1737647933299,3.28579,3256.3,3255.8,3.07141]
[1737647933496,0.2148,3256.3,3255.8,38.685707]
[1737647933695,3.07081,3256.5,3255.8,38.685707]
[1737647933696,3.07089,3256.4,3255.8,38.685707]
[1737647933883,3.07102,3256.3,3255.8,35.614297]
[1737647934396,3.07117,3256.1,3255.8,0.614297]
[1737647934601,3.07117,3256.1,3255.6,3.07156]
[1737647934761,3.07102,3256.3,3255.6,3.07156]
[1737647934961,3.07102,3256.3,3255.7,35.0]
[1737647935157,3.07102,3256.3,3255.7,38.07152]
[1737647935699,3.07081,3256.5,3255.7,38.07146]
[1737647935994,3.07062,3256.7,3256.1,0.8042]
[1737647936298,3.07072,3256.6,3255.9,6.14255]
[1737647936494,3.07062,3256.7,3255.9,3.07125]
[1737647936855,3.07062,3256.7,3256.1,3.07107]
[1737647937061,3.07057,3256.8,3256.1,3.07112]
[1737647937275,3.0706,3256.7,3256.2,0.307112]
[1737647937680,3.07043,3256.9,3256.2,0.307112]
[1737647937877,3.0706,3256.7,3256.2,0.307112]
[1737647940923,3.07043,3256.9,3256.2,3.378152]
[1737647941136,3.07061,3256.7,3256.2,3.378152]
[1737647941308,3.07061,3256.7,3256.2,3.36981369]
[1737647941683,3.07061,3256.7,3256.2,0.29877369]
[1737647941882,3.07075,3256.6,3255.9,3.0713]
[1737647942146,3.07074,3256.6,3256.0,3.0712]
[1737647942337,3.07074,3256.6,3255.8,0.8017]
[1737647942338,2.0,3257.0,3256.7,3.07058]
[1737647942484,2.0,3257.0,3256.6,0.8051]
[1737647942890,3.07041,3256.9,3256.6,0.8051]
[1737647943091,3.07059,3256.7,3256.0,3.87626]
[1737647944219,3.07059,3256.7,3256.1,3.0711]
[1737647944527,3.07041,3256.9,3256.1,3.0711]
[1737647944528,3.07041,3256.9,3256.2,3.071]
[1737647944729,2.0,3257.0,3256.1,3.0711]
[1737647944730,2.0,3257.0,3256.3,3.07095]
[1737647944920,2.0,3257.0,3256.8,3.07048]
[1737647945112,2.0,3257.0,3256.8,3.07043]
[1737647945631,2.0,3257.0,3256.9,0.809]
[1737647947510,2.0,3257.0,3256.9,3.8794]
[1737647948210,2.0,3257.0,3256.9,0.809]
[1737647949444,2.0,3257.0,3256.5,0.8629]
[1737647949654,5.07031,3257.0,3256.4,3.07085]
[1737647949829,5.28511,3257.0,3256.4,3.07085]
[1737647950513,3.07052,3256.8,3256.2,3.93392]
[1737647950737,3.0707,3256.6,3256.2,0.8629]
[1737647951053,3.07091,3256.4,3255.9,0.8493]
[1737647951253,3.07097,3256.3,3255.8,3.0714]
[1737647951439,3.28586,3256.2,3255.6,3.8959]
[1737647951609,3.07141,3255.9,3255.3,3.89617]
[1737647952197,3.07115,3256.1,3254.7,3.68988221]
[1737647952198,0.2148,3256.0,3254.8,0.8191]
[1737647952357,3.0718,3255.5,3254.8,0.8191]
[1737647952519,3.2148,3256.0,3254.9,3.07221]
[1737647952715,3.07158,3255.7,3255.1,3.07209]
[1737647952914,6.28612,3256.0,3255.3,3.07188]
[1737647953163,3.07145,3255.8,3255.1,3.07203]
[1737647953321,3.07187,3255.4,3254.8,0.8191]
[1737647953520,3.07191,3255.3,3254.8,0.8191]
[1737647953915,3.07181,3255.5,3254.8,3.89146]
[1737647954136,3.07166,3255.6,3254.8,3.07236]
[1737647954340,0.2148,3255.5,3254.8,3.07236]
[1737647954540,0.2148,3255.5,3254.5,0.55]
[1737647954725,0.2148,3255.5,3254.5,0.55252525]
[1737647954942,0.2148,3255.5,3255.1,3.07207]
[1737647955128,0.2148,3255.5,3255.4,3.07181]
[1737647955456,3.28607,3256.0,3255.4,3.07181]
[1737647955832,3.07136,3255.9,3255.2,3.93299]
[1737647956053,3.07144,3255.8,3255.2,3.93299]
[1737647956261,3.07144,3255.8,3255.0,3.07216]
[1737647956799,3.0716,3255.7,3255.1,3.07209]
[1737647956940,3.07144,3255.8,3255.1,3.07209]
[1737647957639,3.07154,3255.7,3255.2,3.072]
[1737647957841,3.07154,3255.7,3255.1,3.07209]
[1737647958770,3.07139,3255.9,3255.2,3.07198]
[1737647958966,3.07145,3255.8,3255.2,3.07198]
[1737647959288,3.28608,3256.0,3255.2,3.07198]
[1737647959444,3.07148,3255.8,3255.2,3.07198]
[1737647960143,3.0716,3255.7,3255.0,3.07218]
[1737647960467,3.07173,3255.5,3254.9,3.07227]
[1737647960660,3.07184,3255.4,3254.8,3.07235]
[1737647960860,3.07154,3255.7,3254.9,3.07222]
[1737647961181,3.07184,3255.4,3254.7,3.85471]
[1737647961366,3.07184,3255.4,3254.8,3.07231]
[1737647961570,3.07156,3255.7,3255.1,3.07206]
[1737647961772,3.07146,3255.8,3255.2,3.07196]
[1737647961945,3.28613,3256.0,3255.3,3.07187]
[1737647962146,3.07145,3255.8,3255.3,3.07187]
[1737647962464,3.28613,3256.0,3255.3,3.07187]
[1737647962670,3.07136,3255.9,3255.3,3.07187]
[1737647963755,3.07146,3255.8,3255.3,3.07187]
[1737647964206,3.07156,3255.7,3255.1,3.07208]
[1737647967088,3.07156,3255.7,3255.2,3.07198]
[1737647967454,3.07156,3255.7,3255.1,3.07208]
[1737647968594,3.07143,3255.9,3255.1,3.07208]
[1737647968791,3.0716,3255.7,3255.1,3.07208]
[1737647969990,0.2148,3256.0,3254.7,0.7823]
[1737647970191,3.07235,3254.9,3254.3,0.7786]
[1737647970570,3.07248,3254.7,3254.3,0.7786]
[1737647970976,3.07235,3254.9,3254.3,3.85145]
[1737647971272,0.1691,3255.9,3255.2,3.07191]
[1737647971460,0.1691,3256.3,3255.1,0.7994]
[1737647971654,3.23986,3256.6,3255.9,3.07132]
[1737647971891,0.1691,3256.6,3256.0,3.07115]
[1737647972096,0.1691,3256.6,3255.8,3.07139]
[1737647972302,0.1691,3255.9,3255.0,0.8196]
[1737647972506,3.07172,3255.6,3255.0,0.8196]
[1737647972799,0.75568897,3255.6,3254.7,0.8166]
[1737647972973,3.07198,3255.3,3254.6,3.07256]
[1737647973695,3.07198,3255.3,3254.7,3.07245]
[1737647974066,3.99652897,3255.5,3254.8,3.07238]
[1737647974067,0.1691,3255.5,3254.8,3.07238]
[1737647974267,3.07153,3255.7,3255.0,3.07211]
[1737647974468,0.1691,3255.8,3255.0,3.07211]
[1737647974469,0.1691,3255.8,3255.2,3.07197]
[1737647974992,3.2406,3255.8,3255.2,3.07197]
[1737647975490,0.1691,3256.1,3255.0,0.55]
[1737647975689,3.24028,3256.1,3255.3,3.07182]
[1737647975899,3.24028,3256.1,3255.3,3.379002]
[1737647976103,0.1691,3256.4,3255.8,3.07143]
[1737647976395,0.1691,3256.4,3255.6,3.88413]
[1737647976702,3.07097,3256.3,3255.6,3.88413]
[1737647978256,3.07097,3256.3,3255.7,3.07151]
[1737647978480,0.1691,3256.4,3255.7,0.695564]
[1737647978683,3.07068,3256.6,3255.9,3.07129]
[1737647979088,2.0,3256.0,3255.9,3.07129]
[1737647981112,2.0,3256.0,3255.8,3.07142]
[1737647982316,2.0,3256.0,3255.9,3.07134]
[1737647984508,2.0,3256.0,3255.7,6.143]
[1737647984681,2.0,3256.0,3255.6,0.8125]
[1737647984682,2.0,3256.0,3255.8,3.07141]
[1737647985878,2.0,3256.0,3255.6,0.8125]
[1737647987175,2.0,3256.0,3255.6,3.88411]
[1737647987476,2.0,3256.0,3255.6,0.8125]
[1737647988114,2.0,3256.0,3255.5,3.07169]
[1737647988322,2.0,3256.0,3255.6,3.07162]
[1737647989282,2.0,3256.0,3255.9,3.89774]
[1737647989476,0.1537,3257.7,3257.0,0.8264]
[1737647989747,1.228615,3257.4,3257.0,0.8264]
[1737647990215,0.1537,3257.7,3257.0,3.0703]
[1737647990216,3.22338,3257.7,3257.0,3.0703]
[1737647990381,3.22338,3257.7,3257.1,3.0702]
[1737647990582,3.0,3257.6,3257.2,0.61405]
[1737647990791,3.0,3257.6,3257.2,3.68414]
[1737647991315,3.06946,3257.9,3257.4,3.06992]
[1737647991480,0.1537,3258.0,3257.5,3.06983]
[1737647991886,3.06907,3258.4,3257.6,3.06974]
[1737647992077,0.1537,3258.4,3257.9,3.06945]
[1737647992316,0.1537,3258.4,3257.9,3.06939]
[1737647992522,0.1537,3258.7,3257.9,3.06939]
[1737647992734,0.1537,3258.7,3258.1,3.06921]
[1737647992735,3.22243,3258.7,3258.1,3.06921]
[1737647992877,3.0,3258.6,3258.1,3.06921]
[1737647993081,3.22243,3258.7,3258.1,3.06921]
[1737647993946,0.1537,3259.0,3258.5,3.06889]
[1737647994239,3.06817,3259.3,3258.6,3.06874]
[1737647994418,3.0,3259.1,3258.5,3.0688]
[1737647994595,0.1537,3259.4,3258.3,3.61908]
[1737647994940,0.1537,3259.4,3258.8,3.06853]
[1737647995137,0.1537,3259.4,3258.3,0.55]
[1737647995138,3.1537,3259.4,3258.3,0.55]
[1737647995343,3.1537,3259.4,3258.8,3.06856]
[1737647995344,3.22175,3259.4,3258.8,3.06856]
[1737647996440,3.06815,3259.3,3258.7,3.06864]
[1737647996598,3.0,3259.2,3258.2,0.7867]
[1737647996798,3.06863,3258.8,3258.3,0.23278006]
[1737647997277,3.06852,3258.9,3258.3,3.30184006]
[1737647997444,3.06839,3259.1,3258.4,3.06892]
[1737647997737,3.0685,3259.0,3258.5,0.26733912]
[1737647998225,3.06852,3258.9,3258.5,0.26733912]
[1737647998423,3.06849,3259.0,3258.5,0.26733912]
[1737647998623,3.0,3259.2,3258.5,0.26733912]
[1737647998836,3.06852,3258.9,3258.5,0.26733912]
[1737647999027,0.1537,3259.0,3258.5,0.26733912]
[1737647999223,0.1537,3259.0,3258.4,3.06894]
[1737647999425,3.1537,3259.3,3258.4,1.46312405]
[1737647999630,0.1537,3259.8,3259.0,3.06836]
[1737647999832,0.1537,3259.8,3259.2,3.06823]
[1737648000052,0.1537,3259.8,3259.1,0.8149]
[1737648000053,3.22144,3259.8,3259.3,0.29142518]
[1737648000855,3.22144,3259.8,3259.2,0.30942194]
[1737648000856,0.1537,3259.8,3259.2,0.30942194]
[1737648001294,0.1537,3259.8,3259.3,0.02807291]
[1737648001444,0.1537,3259.8,3258.6,0.55]
[1737648001765,3.06788,3259.6,3259.0,3.06838]
[1737648001920,3.06806,3259.4,3258.9,0.55]
[1737648002234,3.0682,3259.3,3258.9,0.55]
[1737648002424,3.0682,3259.3,3258.8,0.55]
[1737648003171,3.0,3259.8,3258.8,0.55]
[1737648003315,6.22231,3258.8,3258.7,0.29147978]
[1737648003663,0.1537,3258.5,3258.1,0.55]
[1737648003878,3.89535365,3259.7,3258.1,1.853936]
[1737648003879,0.1537,3259.0,3258.1,1.853936]
[1737648004149,0.27912933,3260.1,3258.5,0.55]
[1737648004150,3.22175,3259.4,3258.5,0.55]
[1737648004353,3.06849,3259.0,3258.3,0.55]
[1737648004545,6.06833,3259.1,3258.5,0.55]
[1737648005161,3.0,3259.1,3258.6,0.55]
[1737648005843,0.1537,3259.8,3258.8,1.50863192]
[1737648006160,3.06861,3258.8,3258.7,0.7904]
[1737648006451,3.06776,3259.7,3258.2,2.29281389]
[1737648006452,3.06853,3258.9,3258.2,2.29281389]
[1737648006663,6.13402,3260.5,3258.4,0.7908]
[1737648006871,0.25,3260.8,3258.7,0.7908]
[1737648007071,0.25,3260.8,3258.8,1.50863192]
[1737648007224,3.83686655,3261.0,3258.8,1.50863192]
[1737648007225,4.08686655,3261.0,3258.8,1.50863192]
[1737648007577,3.72255784,3261.0,3258.8,1.50863192]
[1737648007747,3.47255784,3261.0,3258.8,1.50863192]
[1737648007923,3.47255784,3261.0,3259.0,1.55876288]
[1737648008127,0.35208549,3261.2,3259.3,0.8013]
[1737648008448,0.35208549,3261.2,3259.0,1.55876288]
[1737648008449,0.55,3261.0,3259.0,1.55876288]
[1737648008652,0.37621659,3260.9,3259.0,1.55876288]
[1737648008969,0.55,3260.8,3259.0,1.55876288]
[1737648009173,0.55,3260.5,3258.9,1.59463536]
[1737648009366,0.55,3260.5,3258.5,1.58040207]
[1737648009367,3.06795,3259.5,3258.5,1.58040207]
[1737648009554,0.5,3260.1,3258.5,1.58040207]
[1737648009755,0.55,3260.0,3258.5,1.58040207]
[1737648010373,1.05,3259.8,3257.5,0.7779]
[1737648010669,0.55,3259.6,3257.7,1.56023803]
[1737648010820,0.5,3260.3,3257.7,1.56023803]
[1737648011021,0.5,3259.8,3257.9,1.5418905]
[1737648011518,0.55,3259.7,3257.9,1.5418905]
[1737648012164,0.84480931,3260.3,3257.9,1.5418905]
[1737648012325,0.5,3259.8,3258.1,1.53755721]
[1737648012527,0.55,3259.5,3258.1,1.53755721]
[1737648012727,0.5,3259.8,3258.1,1.53755721]
[1737648013038,1.53384,3259.8,3257.9,1.5418905]
[1737648013380,2.03384,3259.8,3257.9,1.5418905]
[1737648013559,0.5,3259.5,3257.4,2.32336366]
[1737648013731,0.25,3259.4,3257.4,2.32336366]
[1737648014059,0.5,3259.2,3257.4,2.32336366]
[1737648014546,0.5,3259.7,3257.7,0.55]
[1737648014864,0.5,3259.7,3257.5,3.61975]
[1737648014865,3.75,3259.7,3257.5,1.51374905]
[1737648015021,3.75,3259.7,3257.4,3.7945]
[1737648015022,3.5,3259.7,3257.7,1.56023803]
[1737648015225,3.5,3259.7,3257.8,0.55]
[1737648015459,3.0,3259.7,3257.9,4.6112905]
[1737648015624,3.0,3259.7,3258.1,4.60681721]
[1737648015964,3.47255784,3260.7,3258.3,1.5475784]
[1737648015965,0.5,3260.3,3258.3,1.5475784]
[1737648016165,0.5,3260.3,3258.5,1.58040207]
[1737648016370,0.25,3260.2,3258.5,1.58040207]
[1737648016675,0.75,3260.2,3258.3,1.5475784]
[1737648016969,0.25,3260.2,3258.3,1.5475784]
[1737648017131,0.75,3260.4,3258.3,4.6165884]
[1737648017338,0.25,3260.4,3258.7,1.54570196]
[1737648017561,0.75,3260.4,3258.7,1.54570196]
[1737648018087,0.5,3260.4,3258.7,1.54570196]
[1737648018236,3.25,3260.5,3258.7,1.54570196]
[1737648018437,0.25,3260.7,3258.7,1.54570196]
[1737648018659,0.25,3260.7,3258.9,1.59463536]
[1737648019037,0.25,3260.9,3258.9,1.59463536]
[1737648019238,0.5,3260.6,3258.7,1.54570196]
[1737648019665,0.75,3260.9,3258.7,1.54570196]
[1737648019939,5.39,3261.1,3259.4,1.59070296]
[1737648020455,0.5,3261.2,3259.6,1.51255213]
[1737648020656,0.55,3261.5,3259.6,1.76255213]
[1737648020952,3.47255784,3261.8,3259.6,1.76255213]
[1737648020953,1e-08,3259.9,3259.6,1.76255213]
[1737648021137,1e-08,3259.9,3259.5,1.54283113]
[1737648021339,1e-08,3259.9,3259.3,1.57156102]
[1737648022375,1e-08,3259.9,3258.7,1.54570196]
[1737648022673,1e-08,3259.9,3259.1,1.56968809]
[1737648023242,2.0,3262.3,3259.1,1.56968809]
[1737648023243,3.47255784,3261.1,3259.1,1.56968809]
[1737648023750,0.55,3261.0,3259.1,1.56968809]
[1737648023959,3.47255784,3260.7,3258.7,2.04569268]
[1737648024307,5.39,3260.7,3260.6,2.74971057]
[1737648024591,5.39,3260.7,3258.6,0.8085]
[1737648024592,0.3067,3260.5,3258.7,1.54570196]
[1737648024745,3.47255784,3260.0,3258.7,1.54570196]
[1737648025177,3.47255784,3260.4,3258.7,1.79570196]
[1737648025344,3.0,3260.3,3258.7,1.54570196]
[1737648025740,5.39,3260.7,3258.7,1.54570196]
[1737648025741,3.0,3259.9,3258.7,1.54570196]
[1737648025956,3.0,3259.5,3258.7,1.54570196]
[1737648026186,3.0,3259.5,3257.9,1.5418905]
[1737648026362,3.0,3259.5,3258.1,1.53755721]
[1737648026565,3.47255784,3260.4,3258.5,1.58040207]
[1737648026755,3.47255784,3260.4,3258.7,1.54570196]
[1737648026941,3.0,3260.3,3258.7,1.54570196]
[1737648027144,3.0,3260.3,3258.9,1.59463536]
[1737648027344,3.0,3260.3,3258.7,1.54570196]
[1737648027663,3.0,3259.9,3258.7,1.54570196]
[1737648029283,3.0,3260.3,3258.7,1.54570196]
[1737648029674,3.0,3259.9,3258.7,1.54570196]
[1737648029978,3.0,3259.9,3258.6,0.8023]
[1737648030179,3.0,3259.9,3257.6,1.55190466]
[1737648030180,3.0,3259.9,3258.2,1.28489072]
[1737648030379,3.0,3260.3,3258.4,1.5617449]
[1737648030584,3.0,3260.3,3258.6,1.56476938]
[1737648031628,3.0,3260.3,3258.9,1.59463536]
[1737648032125,3.0,3260.3,3258.8,1.50863192]
[1737648032926,3.0,3260.3,3259.0,1.80876288]
[1737648033428,3.47255784,3260.8,3259.0,2.06779917]
[1737648033633,3.0,3260.7,3259.0,0.50903629]
[1737648033828,3.0,3260.3,3258.9,0.7816]
[1737648034345,3.47255784,3261.1,3259.0,0.55]
[1737648034539,3.47255784,3261.5,3259.6,1.51255213]
[1737648034687,5.39,3261.6,3259.8,2.31054765]
[1737648035038,3.47255784,3261.7,3260.0,2.25720535]
[1737648035633,3.47255784,3261.3,3260.0,0.25]
[1737648035843,3.0,3261.2,3260.0,1.75721463]
[1737648036038,3.0,3261.2,3260.0,0.74999072]
[1737648036186,3.0,3261.2,3260.0,2.25720535]
[1737648036387,3.47255784,3261.3,3260.0,2.25720535]
[1737648036628,3.47255784,3261.3,3260.0,0.25]
[1737648036896,3.0,3261.2,3260.0,0.74999072]
[1737648037619,3.0,3261.2,3260.0,0.25]
[1737648037931,3.0,3261.6,3260.0,0.25]
[1737648038102,3.0,3261.6,3260.1,0.8338]
[1737648038307,3.0,3261.6,3260.3,0.25]
[1737648038499,3.47255784,3262.1,3260.5,0.25]
[1737648038719,0.499991,3262.0,3260.7,0.25]
[1737648038917,3.499991,3262.0,3260.7,0.25]
[1737648039116,0.499991,3262.0,3260.8,0.7881]
[1737648039345,0.499991,3262.0,3261.1,0.25]
[1737648039511,3.47255784,3262.5,3261.1,0.25]
[1737648039912,3.0,3262.4,3261.1,0.25]
[1737648040205,3.0,3262.8,3261.1,0.25]
[1737648040715,3.0,3262.8,3260.8,0.7881]
[1737648040917,3.0,3262.4,3260.8,0.7881]
[1737648043320,3.47255784,3263.0,3260.9,0.25]
[1737648043651,3.0,3262.9,3261.0,0.8123]
[1737648044050,3.0,3262.9,3261.1,0.25]
[1737648044813,3.0,3262.9,3261.2,0.8162]
[1737648045736,3.47255784,3263.0,3261.2,1.31619072]
[1737648046052,0.345,3262.9,3261.3,0.98531907]
[1737648046756,3.345,3262.9,3261.3,0.98531907]
[1737648048556,3.345,3262.9,3261.3,1.23531907]
[1737648048860,3.345,3262.9,3261.4,0.8698]
[1737648049553,3.47255784,3262.6,3261.4,0.8698]
[1737648049754,3.345,3262.5,3261.4,0.8698]
[1737648050459,0.345,3262.5,3261.4,0.8698]
[1737648050754,3.345,3262.5,3261.4,0.8698]
[1737648051065,3.345,3262.5,3260.6,0.49999072]
[1737648051066,3.345,3262.5,3260.6,1.42519072]
[1737648052117,3.345,3262.5,3260.7,0.9476]
[1737648052365,3.345,3262.5,3260.8,0.25]
[1737648052653,3.345,3262.5,3260.9,0.9476]
[1737648053430,3.0,3262.1,3260.9,0.9476]
[1737648053682,0.345,3262.0,3260.9,0.9476]
[1737648054041,0.345,3262.3,3260.9,0.9476]
[1737648054635,3.0,3262.1,3260.9,0.9476]
[1737648055175,3.47255784,3261.4,3260.9,0.9476]
[1737648055339,3.0,3261.3,3260.9,0.9476]
[1737648055668,3.0,3261.3,3260.5,0.9632]
[1737648055866,0.345,3261.7,3260.5,0.9632]
[1737648056784,3.47255784,3262.2,3260.7,0.9223]
[1737648056941,3.0,3261.0,3260.7,0.9223]
[1737648057143,3.47255784,3261.5,3259.8,0.25]
[1737648057342,3.0,3261.4,3260.0,0.9223]
[1737648057853,3.0,3261.4,3260.2,0.9223]
[1737648058384,3.0,3261.8,3260.4,0.9223]
[1737648058740,3.0,3261.4,3260.4,0.9223]
[1737648059379,3.81755784,3261.9,3260.4,35.9223]
[1737648059542,3.81755784,3261.9,3260.5,0.9223]
[1737648060079,3.0,3261.8,3260.5,0.9223]
[1737648060578,3.0,3261.8,3260.5,1.1723]
[1737648060751,3.0,3261.8,3260.6,0.9339]
[1737648060953,3.0,3261.4,3260.6,0.9339]
[1737648061209,3.81755784,3261.5,3260.6,0.9339]
[1737648061210,3.0,3261.0,3260.6,0.9339]
[1737648061696,3.0,3261.0,3259.7,0.25]
[1737648061882,3.47255784,3260.4,3259.8,0.9016]
[1737648062057,3.0,3260.3,3259.8,0.9016]
[1737648062695,0.345,3260.9,3259.8,0.9016]
[1737648062696,3.0,3259.9,3259.8,0.9016]
[1737648063367,3.47255784,3260.4,3259.8,0.9016]
[1737648063574,3.47255784,3260.8,3259.8,0.9016]
[1737648063895,3.0,3260.7,3260.0,0.9527]
[1737648064282,3.0,3260.3,3260.0,0.9527]
[1737648065675,3.0,3260.3,3259.4,0.8698]
[1737648065858,3.0,3259.9,3259.4,0.8698]
[1737648066395,0.345,3260.6,3259.4,0.8698]
[1737648066396,3.0,3260.3,3259.4,0.8698]
[1737648066796,3.0,3260.3,3259.6,0.8745]
[1737648068063,3.0,3260.3,3259.7,0.25]
[1737648068400,3.0,3260.3,3259.8,0.9276]
[1737648069315,3.0,3260.3,3259.7,0.25]
[1737648069316,3.0,3260.7,3260.2,0.25]
[1737648069479,3.47255784,3261.2,3260.3,0.8935]
[1737648069683,3.47255784,3261.6,3260.6,0.8935]
[1737648069908,3.47255784,3261.6,3260.7,35.0]
[1737648070213,3.0,3261.5,3260.8,0.8935]
[1737648071013,3.47255784,3261.6,3261.0,0.9295]
[1737648071223,3.47255784,3262.0,3261.2,0.9295]
[1737648071380,3.0,3261.9,3261.3,0.25]
[1737648071713,3.47255784,3262.0,3261.4,0.9295]
[1737648072324,3.0,3261.5,3261.4,0.9295]
[1737648072620,3.0,3261.5,3261.0,0.9536]
[1737648072999,3.79528761,3262.4,3260.5,35.49999072]
[1737648073000,3.47255784,3262.0,3261.3,0.9536]
[1737648073202,3.47255784,3261.6,3261.3,0.9536]
[1737648073379,3.0,3261.5,3261.3,0.9536]
[1737648074121,3.0,3261.5,3261.0,0.9536]
[1737648074958,3.0,3261.5,3261.0,1.2036]
[1737648075099,3.47255784,3262.0,3261.2,0.25]
[1737648075283,3.47255784,3262.0,3261.3,0.8959]
[1737648075479,3.47255784,3262.0,3261.4,0.25]
[1737648075679,3.0,3261.9,3261.3,0.8959]
[1737648075938,3.0,3261.9,3261.4,0.25]
[1737648076379,3.0,3261.9,3261.5,0.8856]
[1737648076817,3.47255784,3262.0,3261.6,0.25]
[1737648077820,3.0,3261.9,3261.6,0.25]
[1737648078324,3.0,3261.9,3261.5,1.38559072]
[1737648078617,3.0,3261.9,3261.6,0.25]
[1737648078926,3.0,3262.3,3261.7,1.0543]
[1737648079485,3.0,3261.9,3261.7,1.0543]
[1737648081205,3.0,3261.9,3261.3,0.74999072]
[1737648081793,3.0,3261.9,3261.3,0.25]
[1737648082195,3.47255784,3261.6,3260.8,0.49999072]
[1737648082420,3.0,3261.1,3260.8,0.25]
[1737648083387,3.0,3261.5,3261.0,0.25]
[1737648083593,3.0,3261.9,3261.0,0.25]
[1737648083794,3.47255784,3262.0,3261.4,0.25]
[1737648084321,3.47255784,3262.0,3261.7,0.25]
[1737648084536,3.0,3261.9,3261.7,0.25]
[1737648084700,3.47255784,3262.4,3261.7,0.25]